Cogmind - Beta 9.3 @@@ ROGUE MODE // 2019.12.17 @ 03:03:41 // Winter2019/RPGLIKE Player: cptwinky Result: Destroyed by Y-45 Defender with Beam Rifle Performance ------------- Evolutions (1) 500 Regions Visited (3) 600 Robots Destroyed (60) 300 Value Destroyed (1759) 1759 Prototype IDs (2) 40 Alien Tech Used (0) 0 Bonus (28) 28 TOTAL SCORE: 3227 Bonus ------- High Alert Combat Kills 38 Follower Combat Kills 7 Friendly Fire -17 Cogmind --------- Core Integrity 0/600 Matter 300/300 Energy 257/265 System Corruption 0% Temperature Cool (9) Movement Rolling (90) Ox1 Location -9/Materials Parts ------- > --- POWER (1) -------- Improved Ion Engine > --- PROPULSION (2) --- Light Treads Wheel > --- UTILITY (2) ------ Advanced Terrain Scanner Core Shielding > --- WEAPON (2) ------- EM Pulse Gun > --- INVENTORY (2) ---- Protomatter-32 Improved Terrain Scanner Peak State ------------ > --- POWER ------------ Improved Ion Engine > --- PROPULSION ------- Light Treads Wheel > --- UTILITY ---------- Advanced Terrain Scanner Core Shielding > --- WEAPON ----------- EM Pulse Gun EM Shotgun > --- INVENTORY -------- Protomatter Improved Terrain Scanner [Rating: 11] Favorites ----------- Power Ion Engine Engine Ion Engine Propulsion Wheel Treads Light Treads Wheel Wheel Utility Core Shielding Device Improved Terrain Scanner Processor Targeting Computer Protection Core Shielding Weapon EM Pulse Gun Energy Gun EM Pulse Gun Build | -11 -10 -10 -9 ------- Run | Scr Mat Min Mat Slots Evolved 3 | 3 . . . Power . | . . . . Propulsion 1 | 1 . . . Utility 1 | 1 . . . Weapon 1 | 1 . . . Parts Attached 12 | 6 4 1 1 Power 2 | 1 . 1 . Engine 2 | 1 . 1 . Core . | . . . . Reactor . | . . . . Propulsion 2 | 2 . . . Treads 1 | 1 . . . Leg . | . . . . Wheel 1 | 1 . . . Hover . | . . . . Flight . | . . . . Utility 4 | 1 2 . 1 Device 2 | 1 . . 1 Storage . | . . . . Processor 1 | . 1 . . Hackware . | . . . . Protection 1 | . 1 . . Artifact . | . . . . Weapon 4 | 2 2 . . Energy Gun 4 | 2 2 . . Energy Cannon . | . . . . Ballistic Gun . | . . . . Ballistic Cannon . | . . . . Launcher . | . . . . Special Weapon . | . . . . Impact Weapon . | . . . . Slashing Weapon . | . . . . Piercing Weapon . | . . . . Special Melee Weapon . | . . . . Unidentified Prototypes . | . . . . Parts Lost 1 | . . . 1 Power . | . . . . Propulsion . | . . . . Utility . | . . . . Weapon 1 | . . . 1 Highest Loss Streak 1 | . . . 1 Average Slot Usage (%) 99 | . 99 100 99 Engine 14 | . 14 14 14 Treads 14 | . 14 14 14 Wheel 14 | . 14 14 14 Device 14 | . 14 14 14 Protection 12 | . 11 14 14 Energy Gun 27 | . 28 28 27 Naked Turns . | . . . . Heaviest Build 14 | 10 12 14 14 Greatest Support 20 | 10 20 20 20 Greatest Overweight (x) 1 | . 1 1 1 Average Overweight (x) . | . . . . Largest Inventory Capacity 2 | . 2 2 2 Average Capacity 1 | . . 2 2 Most Carried 2 | . 1 2 2 Average Carried . | . . . 1 Final Capacity 2 | . 2 2 2 Final Carried 2 | . . 1 2 Class Distribution -------------------- 100% | Mutant Dominant Class ---------------- Mutant | -10/Materials Mutant | -10/Mines Mutant | -9/Materials Resources | -11 -10 -10 -9 ----------- Run | Scr Mat Min Mat Matter Collected 320 | 231 69 10 10 Remotely . | . . . . Salvage Created 2086 | 23 854 84 1125 Parts 135 | 3 56 10 66 Haulers Intercepted 4 | . 2 . 2 Recyclers Shooed 1 | . 1 . . Parts Field Recycled . | . . . . Retrieved Matter . | . . . . Parts Self-Destructed . | . . . . Prevented . | . . . . Kills | -11 -10 -10 -9 ------- Run | Scr Mat Min Mat Combat Hostiles Destroyed 44 | . 19 4 21 Guns 35 | . 13 4 18 AOE 7 | . 4 . 3 Classes Destroyed 10 | 1 6 1 2 Worker 1 | . . . 1 Builder 4 | . 2 . 2 Tunneler 1 | 1 . . . Hauler 4 | . 2 . 2 Recycler 2 | . . . 2 Operator 1 | . 1 . . Watcher 3 | . 3 . . Swarmer 6 | . 3 . 3 Grunt 31 | . 16 2 13 Sentry 7 | . . 2 5 Best Kill Streak 8 | 1 8 2 5 Combat Bots Only 7 | . 7 2 4 Max Kills in Single Turn 3 | 1 3 1 3 Gunslinging 1 | . . . 1 Exploded 3 | . 3 . 1 Melee . | . . . . Uniques/NPCs Destroyed . | . . . . Combat | -11 -10 -10 -9 -------- Run | Scr Mat Min Mat Damage Taken 2266 | . 628 323 1315 Core 1771 | . 493 254 1024 Absorbed by Shields . | . . . . Redirected to Core 1348 | . 353 217 778 Core Remaining (%) 99 | 100 . 98 . Volleys Fired 155 | 1 60 14 80 Largest 2 | 2 2 2 2 Hottest 90 | 90 90 85 85 Shots Fired 292 | 2 118 28 144 Gun 292 | 2 118 28 144 Cannon . | . . . . Launcher . | . . . . Special . | . . . . Kinetic . | . . . . Thermal 2 | 1 1 . . Explosive . | . . . . Electromagnetic 290 | 1 117 28 144 Robot Hit Streak 22 | 2 12 22 21 Robot Miss Streak 4 | . 2 1 4 Penetration Max . | . . . . Secondary Targets 5 | . . 1 4 Max Gunslinging Chain 1 | . . 1 1 Shots Hit Robots 207 | 2 81 21 103 Core Hits 106 | 1 39 12 54 Critical Hits . | . . . . Critical Kills . | . . . . Critical Parts Destroyed . | . . . . Melee Attacks . | . . . . Impact . | . . . . Slashing . | . . . . Piercing . | . . . . Sneak Attacks . | . . . . Combat Hostiles . | . . . . Follow-up Attacks . | . . . . Damage Inflicted 3365 | 26 1259 278 1802 Guns 2749 | 26 1099 278 1346 Cannons . | . . . . Explosions 616 | . 160 . 456 Melee . | . . . . Ramming . | . . . . Kinetic . | . . . . Thermal 629 | 13 160 . 456 Explosive . | . . . . Electromagnetic 2736 | 13 1099 278 1346 Impact . | . . . . Slashing . | . . . . Piercing . | . . . . Highest Corruption . | . . . . Average Corruption . | . . . . Corruption Purged . | . . . . Overload Shots . | . . . . Overflow Damage . | . . . . Projectiles . | . . . . Explosions . | . . . . Melee . | . . . . Knockbacks . | . . . . Impact . | . . . . Kinetic . | . . . . Secondary . | . . . . Self-Inflicted Damage 158 | . 45 . 113 Shots 7 | . 2 . 5 Rammed . | . . . . Targets Rammed . | . . . . Kicked . | . . . . Crushed . | . . . . Highest Temperature 327 | 30 327 204 279 Average Temperature 89 | 17 89 91 90 Received Heat Transfer 885 | . 291 114 480 Effects 4 | . 1 . 3 Energy Bleed 2 | . 1 . 1 Interference 2 | . . . 2 Siege Activations . | . . . . Robots Corrupted 2 | . 2 . . Combat Hostiles 2 | . 2 . . Parts Fried 17 | . 8 2 7 Impact Corruptions . | . . . . Robots Melted . | . . . . Combat Hostiles . | . . . . Parts Melted 1 | . . . 1 Heat Transferred 987 | 37 150 . 800 Parts Sabotaged . | . . . . Parts Stolen . | . . . . Parts Stripped . | . . . . Power Chain Reactions 10 | . 2 . 8 Missiles Intercepted . | . . . . Alert | -11 -10 -10 -9 ------- Run | Scr Mat Min Mat Peak Influence 495 | 5 384 244 495 Average Influence 182 | . 142 189 244 Maximum Alert Level 2 | . 2 1 2 Low Security (%) 50 | 100 61 33 42 Level 1 45 | . 38 66 44 Level 2 4 | . . . 12 Level 3 . | . . . . Level 4 . | . . . . Level 5 . | . . . . High Security . | . . . . Max Security . | . . . . Squads Dispatched 10 | . 6 . 4 Investigation 7 | . 5 . 2 Extermination . | . . . . Reinforcement 3 | . 1 . 2 Assault . | . . . . Garrison . | . . . . Intercept . | . . . . Construction Impeded . | . . . . Haulers Reinforced . | . . . . Stealth | -11 -10 -10 -9 --------- Run | Scr Mat Min Mat Distress Signals 4 | . 3 . 1 Communications Jammed . | . . . . Distress Signals . | . . . . Times Spotted 72 | . 29 4 39 Peak Tracking Total 5 | . 5 2 5 Tactical Retreats 2 | . 2 . . Traps | -11 -10 -10 -9 ------- Run | Scr Mat Min Mat Traps Triggered 2 | . 1 . 1 Indirectly . | . . . . Trap Hack Attempts . | . . . . Triggered . | . . . . Disarmed . | . . . . Reprogrammed 5 | . 5 . . Reused . | . . . . Traps Extracted . | . . . . Installed . | . . . . Triggered 1 | . . . 1 Machines | -11 -10 -10 -9 ---------- Run | Scr Mat Min Mat Machines Disabled 8 | . 2 2 4 Max in Single Turn 2 | . 1 2 2 Machines Sabotaged 1 | . 1 . . Garrisons Compromised . | . . . . Overloaded Fab Kills . | . . . . Fab Network Shutdowns . | . . . . Hacking | -11 -10 -10 -9 --------- Run | Scr Mat Min Mat Machines Accessed 11 | . 8 . 3 Terminals 9 | . 6 . 3 Fabricators . | . . . . Repair Stations . | . . . . Recycling Units 2 | . 2 . . Scanalyzers . | . . . . Garrison Access . | . . . . Total Hacks 31 | . 22 . 9 Successful 19 | . 17 . 2 Failed 12 | . 5 . 7 Catastrophic 3 | . 1 . 2 Database Lockouts . | . . . . Manual 18 | . 10 . 8 Terminals 26 | . 17 . 9 Fabricators . | . . . . Repair Stations . | . . . . Recycling Units 5 | . 5 . . Scanalyzers . | . . . . Garrison Access . | . . . . Terminal Hacks 10 | . 9 . 1 Robot Analysis 2 | . 2 . . Prototype ID Bank 1 | . 1 . . Branch Access Points 1 | . 1 . . Unreport Threat 2 | . 2 . . Reprogram Traps 3 | . 3 . . Hauler Manifests 1 | . . . 1 Fabricator Hacks . | . . . . Repair Station Hacks . | . . . . Recycling Unit Hacks 2 | . 2 . . Retrieve Components 2 | . 2 . . Scanalyzer . | . . . . Garrison Access Hacks . | . . . . Unauthorized Hacks 16 | . 13 . 3 Terminals 5 | . 4 . 1 Botnet 1 | . 1 . . Disrupt 1 | . . . 1 Sabotage 3 | . 3 . . Fabricators . | . . . . Repair Stations . | . . . . Recycling Units 2 | . 2 . . Tunnel 2 | . 2 . . Scanalyzers . | . . . . Garrison Access . | . . . . Data Cores Recovered 1 | . 1 . . Used 1 | . 1 . . Hacking Detections 8 | . 5 . 3 Full Trace Events 3 | . 1 . 2 Feedback Events . | . . . . Feedback Blocked . | . . . . Robot Schematics Acquired . | . . . . Robots Built . | . . . . Matter . | . . . . Time . | . . . . Total Robot Build Rating . | . . . . Part Schematics Acquired . | . . . . Parts Built . | . . . . Matter . | . . . . Time . | . . . . Total Part Build Rating . | . . . . Parts Repaired . | . . . . Time . | . . . . Parts Recycled . | . . . . Recycled Matter . | . . . . Retrieved Matter . | . . . . Retrieved Components 17 | . 17 . . Parts Scanalyzed . | . . . . Part Schematics Acquired . | . . . . Parts Damaged . | . . . . Bothacking | -11 -10 -10 -9 ------------ Run | Scr Mat Min Mat Used RIF Installer . | . . . . Robots Hacked . | . . . . Non-combat . | . . . . Combat . | . . . . Robot Hacks Applied . | . . . . Relay Couplers Released . | . . . . Robots Rewired 1 | . 1 . . Allies Hacked . | . . . . Hacks Repelled . | . . . . Allies | -11 -10 -10 -9 -------- Run | Scr Mat Min Mat Total Allies 4 | . 1 3 . Largest Group 3 | . 1 3 3 Highest-Rated Group 40 | . 8 40 40 Highest-Rated Ally 16 | . 8 16 16 Total Orders . | . . . . Ally Attacks 14 | . 2 . 12 Total Damage 136 | . 10 . 126 Kills 1 | . . . 1 Allies Corrupted . | . . . . Allies Melted . | . . . . Intel | -11 -10 -10 -9 ------- Run | Scr Mat Min Mat Robot Analysis Total 2 | . 2 . . Derelict Logs Recovered 1 | . . 1 . Drone Launches . | . . . . Drone Recoveries . | . . . . Exploration | -11 -10 -10 -9 ------------- Run | Scr Mat Min Mat Turns Passed 2032 | 51 875 442 664 Spaces Moved 1052 | 48 496 252 256 Core 4 | 4 . . . Treads 525 | . 230 195 100 Legs . | . . . . Wheels 523 | 44 266 57 156 Hover . | . . . . Flight . | . . . . Fastest Speed 50 | 50 80 90 90 Average Speed 123 | 77 119 144 117 Slowest Speed 160 | 80 160 160 160 Overloaded Moves . | . . . . Propulsion Burnouts . | . . . . Robots Hopped . | . . . . Cave-ins Triggered . | . . . . Exploration Rate (%) 50 | 3 86 68 44 Regions Visited 3 Branch Regions 1 Pre-discovered Areas 2 | . 2 . . Known Exits Taken 1 | . 1 . . Unknown Exits Taken 2 | 1 . 1 . Scrap Searched 2 | . . 2 . Spaces Dug . | . . . . Terrain Destroyed 55 | . 11 24 20 Melee . | . . . . Projectile . | . . . . AOE 55 | . 11 24 20 Actions | -11 -10 -10 -9 --------- Run | Scr Mat Min Mat Total 1492 | 56 658 303 475 Wait 189 | 2 52 22 113 Move 1049 | 47 495 251 256 Hop . | . . . . Pick Up 2 | . 1 1 . Fast Attach 11 | 6 4 1 . Attach . | . . . . Detach 2 | . 1 1 . Swap 1 | . . . 1 Drop 4 | . 3 1 . Fire 155 | 1 60 14 80 Melee . | . . . . Ram . | . . . . Kick . | . . . . Crush . | . . . . Escape Stasis . | . . . . Rewire 11 | . 11 . . Trap . | . . . . Miscellaneous 68 | . 31 12 25 Route ------- -11/Scrapyard -10/Materials (discovered 4 exits: *Mat x3 / *Min) -10/Mines (discovered 2 exits: *Mat x2) -9/Materials (discovered 3 exits: [*Mat] / [Min] / [*Sto]) History --------- Turn | Location | Event 2 | -11/Scrapyard | Discovered new exit (range 16) 7 | -11/Scrapyard | Upgraded with Propulsion slot (x1) 7 | -11/Scrapyard | Upgraded with Utility slot (x1) 7 | -11/Scrapyard | Upgraded with Weapon slot (x1) 52 | -11/Scrapyard | Entered Materials 92 | -10/Materials | Discovered new exit (range 13) 124 | -10/Materials | Identified exit to Mines 309 | -10/Materials | Build established: Mutant 412 | -10/Materials | Discovered new exit (range 16) 458 | -10/Materials | Reached level 2 520 | -10/Materials | Destroyed 7 combat bots 642 | -10/Materials | Discovered new exit (range 15) 822 | -10/Materials | Reached level 3 927 | -10/Materials | Entered Mines 1193 | -10/Mines | Learned Materials stockpile data 1201 | -10/Mines | Discovered new exit (range 9) 1264 | -10/Mines | Assisted by bots powering up and referring to "LRC-V3" 1325 | -10/Mines | Discovered new exit (range 16) 1369 | -10/Mines | Entered Materials 1369 | -9/Materials | Accompanied by 3 allies 1371 | -9/Materials | Reached level 4 1400 | -9/Materials | Reached level 5 1688 | -9/Materials | Discovered new exit (range 5) 1751 | -9/Materials | Reached level 6 1846 | -9/Materials | Core integrity fell below 50% 1919 | -9/Materials | Discovered new exit (range 18) 1986 | -9/Materials | Reached level 7 1992 | -9/Materials | Discovered new exit (range 15) 2012 | -9/Materials | Core integrity fell below 20% 2033 | -9/Materials | Destroyed by Y-45 Defender with Beam Rifle Last Messages --------------- Trojan loaded successfully. Testing... Disruption routine running. 02004_ R-06 Scavenger collects Aluminum Leg. 02009_ Terminal disabled. 02009_ K-01 Serf collects debris. 02012_ EM Shotgun destroyed. 02012_ K-01 Serf collects debris. 02016_ Imp. Ion Engine fried. 02016_ Heat Sink fried. 02016_ Y-45 Defender destroyed. 02017_ K-01 Serf collects debris. 02021_ Chain reaction triggered in Imp. Ion Engine. 02022_ U-05 Engineer lays Concrete. 02023_ K-01 Serf collects debris. 02024_ U-05 Engineer lays Concrete. 02027_ K-01 Serf collects debris. 02029_ U-05 Engineer lays Concrete. 02030_ Y-45 Defender misfires. 02030_ U-05 Engineer lays Concrete. Map ----- +----------------------------------------------------+ | ???????????????????????????????????????? | | ???????????????????????????????????????? | | ???????????????????????????????????????? | | ???????????????????????????????????????? | | ???????????????#???????????????????????? | | ??????????###??#?##?#??????????????????? | | ???????###?#####?#######?#??????? ?# ? | | ??????#?###?#####?##########?### ## " | | ???####?###########?########### ? " | | ??##??##?##?################?## # | | ?#####?#?#?####?############### + | | ?###???######################## # ? | | ###?##?###?#?################## # | | ###?###?######################## ##### | | ################?############### | | ###############?################ | | #?##?########################### """" | | #?#?#########? # ## """" | | ?#?#########?# # # """" | | ?############# # # | | ?####?######## "T" # + | | #??########### """ # # | | ?## ??## # ### # # ##+# | | ###? ### #######;### # ## | | ?## ###[ k # # ## "" | | #?# ###@! ########### ## "" | | ### < =!= % / "" | | ##? ! ### ############ ## | | ####### ### ################# "" | | ##?##?### ######;Y;################## "T | | ######### ### ################ "" | | ######### ### ![ ################ | | ?###### # ![ #################+# | | ?###### # != [################# # | | ####### + ################# # | | ?#####? # ?""" ############### | | #######? # """ ############### | | ######## ## """ ############### | | ? # ## ############### | | ? ?"? # ###?##################### | | ????" + ########################## | | ???""? #? ?################## # | | ????? ?#? ################### [[#= | | ???????# #?################# %+= | | ????????? ?#?################ ![[ !#* | | ????????????????#?######?#### ![[ # | | ??????????????????#####?###### ![ # | | ??????????????????####?#?##?######### | | ???????????????????#?###?#####?###### | | ????????????????????##??######?###### | +----------------------------------------------------+ Best States ------------- Heat Dissipation 37 Energy Generation 12 Energy Capacity 265 Matter Stores 300 Matter Capacity 300 Sight Range 16 Terrain Scan Range 20 Terrain Scan Density 510 Resistance: KI 10 Core Shielding 20 Evasion (%) 44 Targeting Accuracy 5 Recoil Reduction 1 Item Schematics ----------------- None Robot Schematics ------------------ None Fabricated ------------ Nothing Alien Tech Used ----------------- None Achievements -------------- None Challenges ------------ None RPGLIKE | -11 -10 -10 -9 --------- Run | Scr Mat Min Mat Levels Raised 6 | . 2 . 4 XP Earned 12196 | 3000 3334 1100 4762 XP Spent 4020 | 2650 1250 . 120 Upgrades 16 | 10 4 . 2 Propulsion Slot 1 | 1 . . . Utility Slot 1 | 1 . . . Weapon Slot 1 | 1 . . . Heat Dissipation 2 | . . . 2 Inventory Capacity 2 | . 2 . . Terrain Scan Density 5 | 5 . . . KI Resistance % 2 | . 2 . . KI Damage % 2 | 2 . . . Protomatter Created 681 | . 241 127 313 Integrity Restored 1435 | . 618 263 554 Core 1166 | . 493 242 431 Parts 269 | . 125 21 123 Protomatter Decayed 183 | . 63 6 114 Game ------ Seed MappingTractorMantle Manual? 0 Play Time 00:17:26 Cumulative 424.2 hours Start 2019.12.17 @ 02:50:49 End 2019.12.17 @ 03:03:41 Sessions 1 Manual Loads 0 Difficulty Rogue Special Mode Winter2019/RPGLIKE Game No. 317 Rogue 313 Adventurer 4 Explorer 0 Win Type - Total 35 Types 28/3/1/1/2/0/0 Lore% 93 Gallery% 94 Achievement% 89 Wizard Run 0 Options --------- ASCII 0 Keyboard 1 Movement Vi Keybinds 0 Fullscreen 0 Font 16/Terminus Map View 76x50 Tactical HUD 1 Map Filters NONE Filters NONE Steam 1 RUN: 609561cb-1983-44fb-95fe-28ee918441c7